bitfinex-derivatives/quotes_ETHF0:USTF0_20250417
["timestamp","ask_amount","ask_price","bid_price","bid_amount"]
[1744891646798,1.25309,1596.5,1596.4,6.44266]
[1744891647102,1.25309,1596.5,1596.4,5.1895]
[1744891650104,3.42329,1596.5,1596.4,5.1895]
[1744891652807,1.25316,1596.4,1596.3,2.14480763]
[1744891654009,3.40016,1596.4,1596.3,2.14480763]
[1744891654697,3.40016,1596.4,1596.3,0.00940763]
[1744891661909,1.25316,1596.4,1596.3,0.00940763]
[1744891663004,1.25316,1596.4,1596.3,2.04940763]
[1744891665118,1.25316,1596.4,1596.3,3.30264763]
[1744891665418,1.25316,1596.4,1596.3,2.04940763]
[1744891667909,1.25316,1596.4,1596.3,3.30264763]
[1744891668412,1.25316,1596.4,1596.3,6.51044763]
[1744891669816,1.25316,1596.4,1596.3,3.30264763]
[1744891670017,1.25316,1596.4,1596.3,6.51044763]
[1744891670211,1.25316,1596.4,1596.3,7.35437702]
[1744891670927,1.25316,1596.4,1596.3,7.35440323]
[1744891671217,1.25316,1596.4,1596.3,2.04940763]
[1744891677330,3.24906,1596.4,1596.3,2.04940763]
[1744891680029,1.25316,1596.4,1596.3,7.35477835]
[1744891680327,1.25316,1596.4,1596.3,2.04940763]
[1744891680527,1.25316,1596.4,1596.3,3.30264763]
[1744891680729,1.25316,1596.4,1596.3,2.04940763]
[1744891680933,1.25316,1596.4,1596.3,3.30264763]
[1744891681136,1.25316,1596.4,1596.3,2.04940763]
[1744891681332,1.25316,1596.4,1596.3,3.30264763]
[1744891681629,1.25316,1596.4,1596.3,6.51044763]
[1744891682133,1.25316,1596.4,1596.3,7.35467365]
[1744891684940,1.25316,1596.4,1596.3,7.35461506]
[1744891685842,1.25316,1596.4,1596.3,6.10137506]
[1744891686239,1.25316,1596.4,1596.3,7.35461506]
[1744891690445,1.25316,1596.4,1596.3,7.355202]
[1744891691850,1.25315,1596.5,1596.4,1.25309]
[1744891692053,1.25315,1596.5,1596.4,6.23784437]
[1744891692243,1.25315,1596.5,1596.4,6.2381146]
[1744891693353,1.25301,1596.7,1596.6,1.25294]
[1744891693650,1.25301,1596.7,1596.6,2.09745444]
[1744891693843,1.25301,1596.7,1596.6,4.08585444]
[1744891694049,1.25301,1596.7,1596.6,3.24134]
[1744891694251,1.25301,1596.7,1596.6,4.0858788]
[1744891694548,1.25301,1596.7,1596.6,3.24134]
[1744891695147,1.25301,1596.7,1596.6,1.9884]
[1744891695350,1.25301,1596.6,1596.5,3.2078]
[1744891695655,1.25301,1596.6,1596.5,7.40986481]
[1744891695951,1.25301,1596.6,1596.5,7.40982711]
[1744891697848,1.25301,1596.6,1596.5,7.40942048]
[1744891698056,1.253,1596.7,1596.6,1.25293]
[1744891698253,1.25292,1596.8,1596.7,1.25293]
[1744891698549,1.26212763,1597.0,1596.9,1.25277]
[1744891698756,0.00940763,1597.0,1596.9,5.30376717]
[1744891698955,1.26209763,1597.0,1596.9,7.44786717]
[1744891699257,1.26209763,1597.0,1596.9,6.60467]
[1744891699854,1.26209763,1597.0,1596.9,5.3519]
[1744891700447,3.21299763,1597.0,1596.9,5.3519]
[1744891700742,3.21299763,1597.0,1596.9,6.60467]
[1744891701145,0.00940763,1597.0,1596.9,6.60467]
[1744891701345,1.25252,1597.3,1597.2,1.25254]
[1744891702049,1.25252,1597.3,1597.2,3.30784]
[1744891704758,0.00940763,1597.4,1597.3,1.25246]
[1744891704960,1.26178763,1597.4,1597.3,8.48156]
[1744891705658,0.00940763,1597.4,1597.3,8.48156]
[1744891705863,1.26178763,1597.4,1597.3,8.48156]
[1744891707557,0.00940763,1597.4,1597.3,8.48156]
[1744891707752,1.26178763,1597.4,1597.3,8.48156]
[1744891707960,0.00940763,1597.4,1597.3,8.48156]
[1744891708259,1.26178763,1597.4,1597.3,8.48156]
[1744891709265,1.26178763,1597.4,1597.3,4.46026]
[1744891709563,3.27398763,1597.4,1597.3,4.46026]
[1744891709951,3.27398763,1597.4,1597.3,6.47576]
[1744891710259,1.26178763,1597.4,1597.3,6.47576]
[1744891711960,1.26178763,1597.4,1597.3,5.2233]
[1744891712162,3.23478763,1597.4,1597.3,5.2233]
[1744891712459,3.23478763,1597.4,1597.3,6.47576]
[1744891714264,0.00940763,1597.4,1597.3,6.47576]
[1744891714464,0.00940763,1597.4,1597.3,8.49006]
[1744891716062,1.26178763,1597.4,1597.3,8.49006]
[1744891716563,0.00940763,1597.4,1597.3,8.49006]
[1744891717863,1.26178763,1597.4,1597.3,8.49006]
[1744891718164,0.00940763,1597.4,1597.3,8.49006]
[1744891718469,1.26178763,1597.4,1597.3,8.49006]
[1744891720259,2.0784,1597.5,1597.3,8.49006]
[1744891720460,2.0784,1597.5,1597.4,3.36748]
[1744891720765,3.3307,1597.5,1597.4,3.36748]
[1744891723266,1.2523,1597.5,1597.4,3.36748]
[1744891725467,1.25222,1597.7,1597.6,1.25214]
[1744891725870,1.25222,1597.7,1597.6,3.32714]
[1744891726360,1.25222,1597.7,1597.6,3.32722]
[1744891726756,3.39472,1597.7,1597.6,3.32722]
[1744891728164,6.5251,1597.7,1597.5,5.2607]
[1744891728462,3.39472,1597.6,1597.5,8.588]
[1744891728769,3.39472,1597.6,1597.5,5.3802]
[1744891728972,1.27393,1598.1,1598.0,1.25191]
[1744891729271,0.02208,1598.1,1598.0,4.45971]
[1744891729765,2.0578,1598.2,1598.1,1.25183]
[1744891729972,3.30959,1598.2,1598.1,1.25183]
[1744891730568,1.25179,1598.2,1598.1,1.25183]
[1744891730759,3.30454,1598.3,1598.2,1.25175]
[1744891730964,3.30454,1598.3,1598.2,4.45955]
[1744891731265,5.36234,1598.3,1598.2,6.41835]
[1744891732171,3.30954,1598.3,1598.2,6.41835]
[1744891732865,3.30954,1598.3,1598.2,3.21055]
[1744891735475,1.25174,1598.3,1598.2,3.21055]
[1744891735674,1.25174,1598.3,1598.2,5.25885]
[1744891735976,1.25174,1598.3,1598.2,8.46665]
[1744891736277,2.139,1598.4,1598.3,1.25167]
[1744891736474,3.39222,1598.5,1598.4,1.2516]
[1744891736779,1.27642,1598.5,1598.4,1.2516]
[1744891738172,0.02483,1598.5,1598.4,1.2516]
[1744891738474,0.02483,1598.5,1598.4,4.4594]
[1744891740376,0.02483,1598.5,1598.4,8.8404]
[1744891741076,1.27635,1598.5,1598.4,8.8404]
[1744891741983,0.02483,1598.5,1598.4,8.8404]
[1744891743179,3.38065,1598.5,1598.4,8.8404]
[1744891743778,2.12913,1598.5,1598.4,8.8404]
[1744891743980,0.02483,1598.5,1598.4,8.8404]
[1744891744585,0.02483,1598.5,1598.4,10.8701]
[1744891745883,1.27635,1598.5,1598.4,10.8701]
[1744891746181,1.27635,1598.5,1598.4,3.2078]
[1744891746392,1.25152,1598.5,1598.4,3.2078]
[1744891746575,3.20352,1598.5,1598.4,4.4594]
[1744891749085,3.20352,1598.5,1598.4,3.2078]
[1744891749279,1.25167,1598.3,1598.2,8.6225]
[1744891749486,1.25167,1598.3,1598.2,6.5742]
[1744891749783,3.25727,1598.3,1598.2,6.5742]
[1744891750281,2.0056,1598.3,1598.2,6.5742]
[1744891750483,5.12634,1598.7,1598.3,1.25167]
[1744891750783,1.25138,1598.8,1598.7,1.25131]
[1744891750984,3.39858,1598.8,1598.7,1.25131]
[1744891751986,3.39858,1598.8,1598.7,3.23061]
[1744891752989,3.21438,1599.0,1598.9,1.25121]
[1744891753379,5.19638,1599.0,1598.9,1.25121]
[1744891753577,5.19638,1599.0,1598.9,3.36501]
[1744891754389,1.25157,1598.5,1598.4,4.4593]
[1744891755385,1.25157,1598.5,1598.4,3.2078]
[1744891755784,1.25157,1598.5,1598.4,4.4594]
[1744891756084,1.25157,1598.5,1598.4,6.5957]
[1744891756786,1.25152,1598.5,1598.4,6.5957]
[1744891756975,3.23351,1598.6,1598.5,1.25152]
[1744891757180,3.23351,1598.6,1598.5,3.38782]
[1744891757788,1.25151,1598.6,1598.5,3.38782]
[1744891757989,1.25142,1598.7,1598.6,1.25144]
[1744891758280,1.25142,1598.7,1598.6,6.59554]
[1744891758483,1.25125,1598.9,1598.8,1.25121]
[1744891758887,1.25125,1598.9,1598.8,5.52181]
[1744891759089,1.25119,1599.0,1598.9,1.25121]
[1744891759285,1.25121,1598.9,1598.8,3.2078]
[1744891759588,1.25149,1598.6,1598.5,3.2078]
[1744891759783,1.25152,1598.5,1598.4,5.4957]
[1744891760791,3.20045,1598.6,1598.5,1.25152]
[1744891760993,3.20045,1598.6,1598.5,3.40692]
[1744891762091,1.25175,1598.2,1598.1,0.00940763]
[1744891762287,1.25175,1598.2,1598.1,0.85131034]
[1744891762489,3.23883,1598.3,1598.2,1.25175]
[1744891762989,3.23883,1598.3,1598.2,3.26365]
[1744891763190,3.23883,1598.3,1598.2,2.0119]
[1744891763589,1.25175,1598.2,1598.1,8.54757763]
[1744891763791,3.23885,1598.2,1598.1,8.54757763]
[1744891764190,3.23885,1598.2,1598.1,8.54763763]
[1744891764591,1.25175,1598.2,1598.1,8.54763763]
[1744891764791,1.25175,1598.2,1598.1,5.33983763]
[1744891765094,1.25175,1598.2,1598.1,6.16812269]
[1744891765294,1.25175,1598.2,1598.1,9.37585985]
[1744891765496,1.25175,1598.2,1598.1,8.54763763]
[1744891765690,1.25175,1598.2,1598.1,3.21720763]
[1744891765894,3.12998,1597.9,1597.5,12.39792579]
[1744891766093,1.25222,1597.6,1597.5,16.85794579]
[1744891766292,1.2522,1597.7,1597.6,3.20989]
[1744891766696,1.2522,1597.7,1597.6,1.9577]
[1744891766898,1.25222,1597.6,1597.5,12.40733342]
[1744891767197,1.25222,1597.6,1597.5,13.65963342]
[1744891767397,1.25222,1597.6,1597.5,15.61733342]
[1744891767596,1.25222,1597.6,1597.5,1.96710763]
[1744891767898,1.25222,1597.6,1597.5,3.21940763]
[1744891768192,1.25222,1597.6,1597.5,1.96710763]
[1744891768692,1.25222,1597.6,1597.5,3.21940763]
[1744891769798,1.25222,1597.6,1597.5,1.96710763]
[1744891769997,1.25222,1597.6,1597.5,3.21940763]
[1744891770393,2.1071,1597.7,1597.6,1.25222]
[1744891770693,5.35512,1597.8,1597.7,1.25214]
[1744891770887,1.25222,1597.6,1597.5,0.00940763]
[1744891771291,4.46002,1597.6,1597.5,0.00940763]
[1744891771493,6.52242,1597.6,1597.5,0.00940763]
[1744891772398,3.31462,1597.6,1597.5,0.00940763]
[1744891772591,6.52242,1597.6,1597.5,0.00940763]
[1744891774295,3.31462,1597.6,1597.5,0.00940763]
[1744891774598,3.31462,1597.6,1597.5,1.97580763]
[1744891776902,1.25222,1597.6,1597.5,3.22810763]
[1744891777095,1.25222,1597.6,1597.5,5.22280763]
[1744891777497,1.25222,1597.6,1597.5,8.43060763]
[1744891778699,1.25219,1597.7,1597.6,1.25214]
[1744891779704,1.25222,1597.6,1597.5,0.00940763]
[1744891779904,5.16062,1597.6,1597.5,0.00940763]
[1744891780907,3.21152,1597.6,1597.5,0.00940763]
[1744891781202,3.21152,1597.6,1597.5,1.26170763]
[1744891782003,3.21152,1597.6,1597.5,0.00940763]
[1744891783906,3.21152,1597.6,1597.5,1.26170763]
[1744891785408,3.21152,1597.6,1597.5,0.00940763]
[1744891785705,3.21152,1597.6,1597.5,1.26170763]
[1744891785906,3.21152,1597.6,1597.5,3.39070763]
[1744891786405,3.21152,1597.6,1597.5,2.13840763]
[1744891787894,3.21152,1597.6,1597.5,3.39070763]
[1744891789413,3.21152,1597.6,1597.5,2.13840763]
[1744891790206,6.41932,1597.6,1597.5,0.00940763]
[1744891793104,6.41932,1597.6,1597.5,1.26170763]
[1744891793302,3.21152,1597.6,1597.5,1.26170763]
[1744891793501,1.25222,1597.6,1597.5,1.26170763]
[1744891793907,1.25222,1597.6,1597.5,5.33860763]
[1744891796010,1.25222,1597.6,1597.5,6.1691459]
[1744891796212,4.46002,1597.6,1597.5,0.00940763]
[1744891796413,6.56722,1597.6,1597.5,0.00940763]
[1744891797814,1.25246,1597.3,1597.2,7.3342]
[1744891798015,1.25246,1597.3,1597.2,8.16549337]
[1744891798315,3.35966,1597.3,1597.2,8.16549337]
[1744891798612,3.35966,1597.3,1597.2,10.23175205]
[1744891799115,1.25246,1597.3,1597.2,11.48429205]
[1744891800119,1.25246,1597.3,1597.2,7.02395205]
[1744891800314,3.31326,1597.3,1597.2,7.02391863]
[1744891800512,1.25246,1597.3,1597.2,8.27645863]
[1744891800916,1.25246,1597.3,1597.2,7.02391863]
[1744891801519,1.25246,1597.3,1597.2,7.02425628]
[1744891801920,1.25246,1597.3,1597.2,8.27679628]
[1744891803109,1.25246,1597.3,1597.1,4.46976763]
[1744891803416,1.25254,1597.2,1597.1,6.45806763]
[1744891803623,1.25254,1597.2,1597.1,5.30100296]
[1744891803820,1.25254,1597.2,1597.1,0.84064296]
[1744891804027,1.25254,1597.2,1597.1,4.04844296]
[1744891804316,1.25254,1597.2,1597.1,2.09326296]
[1744891804523,1.25253,1597.3,1597.2,1.25248]
[1744891804722,1.25253,1597.3,1597.2,3.23928]
[1744891805124,1.26185763,1597.4,1597.3,1.25246]
[1744891805325,1.26185763,1597.4,1597.3,3.34606]
[1744891805620,1.25246,1597.3,1597.2,1.9868]
[1744891805829,1.25246,1597.3,1597.2,2.81778247]
[1744891806028,1.25246,1597.3,1597.2,3.23934]
[1744891806225,1.25246,1597.3,1597.2,4.07033579]
[1744891806525,1.25246,1597.3,1597.2,3.23934]
[1744891806925,1.25246,1597.3,1597.2,4.07027706]
[1744891807128,1.26184763,1597.4,1597.3,1.25246]
[1744891807324,1.26184763,1597.4,1597.3,2.08333548]
[1744891808934,1.26184763,1597.4,1597.3,2.08322294]
[1744891810733,1.26184763,1597.4,1597.3,2.0834509]
[1744891811333,0.00940763,1597.4,1597.3,5.2912509]
[1744891811536,1.26178763,1597.4,1597.3,5.2912509]
[1744891812635,1.26178763,1597.4,1597.3,5.29107919]
[1744891813334,1.26178763,1597.4,1597.3,26.29177678]
[1744891814040,1.26178763,1597.4,1597.3,21.83151678]
[1744891814332,1.26178763,1597.4,1597.3,23.08397678]
[1744891814534,1.26178763,1597.4,1597.3,22.25315759]
[1744891815839,3.39838763,1597.4,1597.3,1.25246]
[1744891816237,3.39838763,1597.4,1597.3,3.27316]
[1744891817942,3.39838763,1597.4,1597.3,4.10421573]
[1744891818244,3.39838763,1597.4,1597.3,3.27316]
[1744891818542,3.39838763,1597.4,1597.3,4.10425905]
[1744891818742,3.39838763,1597.4,1597.3,3.27316]
[1744891819335,3.39838763,1597.4,1597.3,4.10437437]
[1744891820433,3.39838763,1597.4,1597.3,3.27316]
[1744891820843,3.39838763,1597.4,1597.3,4.10461129]
[1744891821141,3.39838763,1597.4,1597.3,3.27316]
[1744891821534,3.39838763,1597.4,1597.3,4.10457653]
[1744891821535,0.00940763,1597.4,1597.3,4.10457653]
[1744891821835,0.00940763,1597.4,1597.3,4.104426]
[1744891822734,1.26178763,1597.4,1597.3,4.104426]
[1744891822931,1.26178763,1597.4,1597.2,8.27619193]
[1744891822932,1.25246,1597.3,1597.2,8.27619193]
[1744891823136,3.35306,1597.3,1597.2,8.27619193]
[1744891823337,7.44816,1597.3,1597.2,8.27619193]
[1744891824641,1.25254,1597.2,1597.1,2.00440763]
[1744891824842,3.35314,1597.2,1597.1,2.00440763]
[1744891826544,11.56094,1597.2,1597.1,0.00940763]
[1744891826751,21.90194,1597.2,1597.1,7.63e-06]
[1744891827939,21.90194,1597.2,1597.0,6.92842956]
[1744891827940,1.25262,1597.1,1597.0,6.92842956]
[1744891828252,3.39602,1597.1,1597.0,6.92842956]
[1744891828449,8.39602,1597.1,1597.0,6.92842956]
[1744891828751,8.39602,1597.1,1597.0,2.74151956]
[1744891828947,1.25269,1597.0,1596.9,10.46484342]
[1744891829152,8.57479,1597.0,1596.9,8.72745342]
[1744891829352,54.37479,1597.0,1596.9,8.72745342]
[1744891829848,54.37479,1597.0,1596.9,5.06839342]
[1744891831251,60.36479,1597.0,1596.9,5.06839342]
[1744891831757,55.36479,1597.0,1596.9,0.00940763]
[1744891838155,60.36479,1597.0,1596.9,0.00940763]
[1744891841362,60.36479,1597.0,1596.9,7.63e-06]
[1744891841555,60.47994312,1597.0,1596.9,7.63e-06]
[1744891842861,3.1322,1596.8,1596.4,4.1085]
[1744891843064,1.25324,1596.3,1596.2,4.46108]
[1744891843267,1.25324,1596.3,1596.2,2.0224]
[1744891844561,3.35014,1596.3,1596.2,2.0224]
[1744891845662,1.25332,1596.2,1596.1,4.20360763]
[1744891845966,6.55802,1596.2,1596.1,0.00940763]
[1744891846159,12.54802,1596.2,1596.1,0.00940763]
[1744891848368,17.54802,1596.2,1596.1,0.00940763]
[1744891849569,12.54802,1596.2,1596.1,0.00940763]
[1744891851470,12.54802,1596.2,1596.1,2.11600763]
[1744891852972,10.45112,1596.2,1596.1,2.11600763]
[1744891853662,12.55622,1596.2,1596.1,2.11600763]
[1744891854061,12.55622,1596.2,1596.1,7.63e-06]
[1744891856872,3.13352,1596.1,1595.8,1.9982]
[1744891857077,1.25371,1595.7,1595.6,4.0829]
[1744891857278,5.57671,1595.7,1595.6,1.9763]
[1744891857975,8.78451,1595.7,1595.6,1.9763]
[1744891860278,5.57671,1595.7,1595.6,4.0042]
[1744891860467,5.57671,1595.7,1595.6,5.25799]
[1744891860667,5.57671,1595.7,1595.6,10.25799]
[1744891860879,1.25371,1595.7,1595.6,10.25799]
[1744891861080,1.25371,1595.7,1595.6,9.0042]
[1744891861283,1.25371,1595.7,1595.6,4.0042]
[1744891861778,1.25371,1595.7,1595.6,5.25799]
[1744891861979,1.25371,1595.7,1595.6,4.0042]
[1744891862178,1.25371,1595.7,1595.6,5.25799]
[1744891862480,1.25371,1595.7,1595.6,4.0042]
[1744891862879,1.25371,1595.7,1595.6,5.25799]
[1744891863383,1.25371,1595.7,1595.6,4.0042]
[1744891866284,5.57771,1595.7,1595.6,4.0042]
[1744891866480,1.25379,1595.6,1595.5,0.00940763]
[1744891866785,4.46159,1595.6,1595.5,0.00940763]
[1744891866978,11.56089,1595.6,1595.5,0.00940763]
[1744891867376,17.55089,1595.6,1595.5,0.00940763]
[1744891868477,12.55089,1595.6,1595.5,0.00940763]
[1744891869585,17.55089,1595.6,1595.5,7.63e-06]
[1744891869779,1.25419,1595.1,1595.0,1.9786]
[1744891869989,5.57819,1595.1,1595.0,1.9366]
[1744891870481,5.57819,1595.1,1594.9,16.44283178]
[1744891870482,1.25426,1595.0,1594.9,16.44283178]
[1744891870781,6.60306,1595.0,1594.9,15.16462178]
[1744891871081,1.25434,1594.9,1594.8,0.00627178]
[1744891871588,5.57834,1594.9,1594.8,0.00627178]
[1744891872185,7.54974,1594.9,1594.8,0.00627178]
[1744891872388,5.57834,1594.9,1594.8,0.00627178]
[1744891875386,11.56834,1594.9,1594.8,0.00627178]
[1744891875586,11.56834,1594.9,1594.8,2.13537178]
[1744891876691,11.56834,1594.9,1594.8,0.00627178]
[1744891876692,13.57624,1594.9,1594.8,0.00627178]
[1744891876889,15.62514,1594.9,1594.8,0.00627178]
[1744891878205,20.62514,1594.9,1594.8,1.78e-06]
[1744891878395,15.62514,1594.9,1594.8,1.78e-06]
[1744891878581,1.25466,1594.5,1594.4,3.2078]
[1744891878887,1.25474,1594.4,1594.3,1.9174]
[1744891879294,1.25474,1594.4,1594.3,3.17222]
[1744891879495,1.25474,1594.4,1594.3,8.17215]
[1744891879688,1.25474,1594.4,1594.3,6.9174]
[1744891879884,1.25474,1594.4,1594.3,1.9174]
[1744891882195,1.25474,1594.4,1594.3,3.17222]
[1744891884191,1.25474,1594.4,1594.3,8.17222]
[1744891884397,1.25474,1594.4,1594.3,3.17222]
[1744891886097,3.13666,1594.5,1594.3,3.17222]
[1744891886299,1.25466,1594.5,1594.4,3.38234]
[1744891886797,1.25466,1594.5,1594.4,2.1276]
[1744891890603,3.24296,1594.5,1594.4,2.1276]
[1744891893303,1.25466,1594.5,1594.4,3.38234]
[1744891895008,1.25466,1594.5,1594.4,2.1276]
[1744891899100,3.31556,1594.5,1594.4,2.1276]
[1744891899704,1.25466,1594.5,1594.4,2.1276]
[1744891900611,1.25466,1594.5,1594.4,3.38234]
[1744891900916,1.25466,1594.5,1594.4,2.1276]
[1744891903610,1.25466,1594.5,1594.3,2.0901]
[1744891903611,1.25474,1594.4,1594.3,2.0901]
[1744891903807,1.25474,1594.4,1594.3,4.1061]
[1744891904007,3.30174,1594.4,1594.3,4.1061]
[1744891907424,3.30174,1594.4,1594.1,3.2078]
[1744891907618,1.25489,1594.2,1594.1,4.2196]
[1744891907820,1.25489,1594.2,1594.1,2.93729786]
[1744891908022,1.25489,1594.2,1594.1,4.19227396]
[1744891908617,1.25478,1594.4,1594.3,1.25471]
[1744891908826,1.25473,1594.5,1594.4,1.25467]
[1744891909129,1.25473,1594.5,1594.4,6.17646126]
[1744891909615,1.25473,1594.5,1594.4,6.17638899]
[1744891911226,1.25473,1594.5,1594.4,6.17641669]
[1744891912927,1.25473,1594.5,1594.4,6.17624717]
[1744891915027,1.25466,1594.6,1594.5,1.25466]
[1744891915229,5.55653,1594.7,1594.6,1.25458]
[1744891915529,5.55653,1594.7,1594.6,2.07251905]
[1744891915730,5.55653,1594.7,1594.6,1.25458]
[1744891916626,2.0359,1594.9,1594.6,3.13646]
[1744891916831,1.25438,1594.9,1594.8,1.25434]
[1744891917533,1.25442,1594.8,1594.7,3.34224]
[1744891918027,1.25442,1594.8,1594.7,2.0878]
[1744891918226,1.25442,1594.8,1594.7,3.3423]
[1744891923133,1.2543,1595.0,1594.9,1.25434]
[1744891923332,1.25434,1594.9,1594.8,3.34196]
[1744891923733,1.25434,1594.9,1594.8,1.25436]
[1744891924034,3.32554,1594.9,1594.8,1.25436]
[1744891924234,1.25434,1594.9,1594.8,1.25436]
[1744891926331,1.25434,1594.9,1594.8,3.35486]
[1744891927738,1.25432,1595.0,1594.9,1.25427]
[1744891927934,1.25432,1595.0,1594.9,3.31367]
[1744891930336,0.00940763,1595.1,1595.0,1.25426]
[1744891930644,0.00940763,1595.1,1595.0,3.83939113]
[1744891931035,0.00940763,1595.1,1595.0,4.6543242]
[1744891931234,0.00940763,1595.1,1595.0,4.65397665]
[1744891931436,0.00940763,1595.1,1595.0,9.65397665]
[1744891931943,3.36284,1595.5,1595.0,14.67101665]
[1744891932143,4.46166,1595.6,1595.5,1.25387]
[1744891932938,3.2078,1595.6,1595.5,1.25387]
[1744891933246,4.46159,1595.6,1595.5,1.25387]
[1744891935047,1.25387,1595.5,1595.4,5.44605763]
[1744891938754,3.2078,1595.6,1595.5,1.25387]
[1744891939952,4.46159,1595.6,1595.5,1.25387]
[1744891941751,1.25379,1595.6,1595.5,1.25387]
[1744891944656,1.25387,1595.5,1595.4,12.89179763]
[1744891946460,1.25387,1595.5,1595.4,14.83769763]
[1744891947358,1.25387,1595.5,1595.4,5.16310763]
[1744891947549,1.25387,1595.5,1595.4,3.21720763]
[1744891947749,3.31617,1595.5,1595.4,3.21720763]
[1744891947953,1.25411,1595.2,1595.1,4.46191]
[1744891948154,1.25411,1595.2,1595.1,6.42801]
[1744891949960,1.25419,1595.1,1595.0,3.34476]
[1744891950155,2.1197,1595.2,1594.8,5.1858]
[1744891950350,7.30336,1595.0,1594.6,5.856]
[1744891950548,2.0478,1595.0,1594.6,3.1364]
[1744891950760,1.2544,1594.9,1594.8,1.25437]
[1744891952453,1.2544,1594.9,1594.8,5.19727]
[1744891952661,7.39462,1595.0,1594.9,1.25434]
[1744891952959,7.39462,1595.0,1594.9,3.18864]
[1744891953550,7.39462,1595.0,1594.9,1.9343]
[1744891955564,7.39462,1595.0,1594.9,3.18864]
[1744891956257,7.39462,1595.0,1594.9,1.9343]
[1744891956453,7.39462,1595.0,1594.9,3.18864]
[1744891957366,7.39462,1595.0,1594.9,1.9343]
[1744891957559,7.39462,1595.0,1594.9,3.18864]
[1744891960069,1.25442,1594.8,1594.7,3.2078]
[1744891960366,3.21861,1594.9,1594.8,1.25442]
[1744891962571,3.21861,1594.9,1594.7,1.9247]
[1744891962572,1.25442,1594.8,1594.7,1.25443]
[1744891962761,3.21862,1594.8,1594.7,1.25443]
[1744891964478,1.25465,1594.6,1594.5,1.25458]
[1744891964766,1.25465,1594.6,1594.5,3.37048]
[1744891965370,7.58857763,1594.7,1594.6,1.25458]
[1744891966368,0.00940763,1594.7,1594.6,3.29418]
[1744891966671,0.00940763,1594.7,1594.6,5.44188]
[1744891966872,1.26390763,1594.7,1594.6,3.29418]
[1744891972178,0.00940763,1594.7,1594.6,3.29418]
[1744891972378,1.26390763,1594.7,1594.6,3.29418]
[1744891972581,0.00940763,1594.7,1594.6,3.29418]
[1744891974673,0.00940763,1594.7,1594.6,7.53418]
[1744891975273,0.00940763,1594.7,1594.6,8.34900214]
[1744891975579,0.00940763,1594.7,1594.6,7.53418]
[1744891975878,0.00940763,1594.7,1594.6,8.34901221]
[1744891976588,0.00940763,1594.7,1594.6,8.3493493]
[1744891978383,0.00940763,1594.7,1594.6,8.3503899]
[1744891980282,0.00940763,1594.7,1594.6,8.35095722]
[1744891981380,0.00940763,1594.7,1594.6,7.53418]
[1744891981680,0.00940763,1594.7,1594.6,8.35103345]
[1744891983485,7.63e-06,1594.7,1594.6,13.35103345]
[1744891983890,5.2316,1595.2,1595.1,1.25419]
[1744891983891,2.0238,1595.2,1595.1,1.25419]
[1744891984188,2.0735,1595.3,1595.2,1.25411]
[1744891984389,3.27777,1595.4,1595.3,1.25403]
[1744891984589,5.38017,1595.4,1595.3,3.30023]
[1744891985283,5.38017,1595.4,1595.3,1.25403]
[1744891990085,1.25419,1595.1,1595.0,1.2542]
[1744891990480,7.38699,1595.1,1595.0,1.2542]
[1744891990785,1.25426,1595.0,1594.9,3.25327]
[1744891990988,3.29116,1595.0,1594.9,3.25327]
[1744891992692,3.29116,1595.0,1594.9,1.25427]
[1744891993084,3.29116,1595.0,1594.9,3.32077]
[1744891994193,2.0369,1595.0,1594.9,3.32077]
[1744891995992,3.29116,1595.0,1594.9,3.32077]
[1744891999401,2.0369,1595.0,1594.9,3.32077]
[1744891999706,1.9696,1595.2,1595.1,1.25419]
[1744891999898,4.0387,1595.4,1595.3,1.25403]
[1744892000206,7.4609,1595.4,1595.3,1.25403]
[1744892000702,4.1322,1595.4,1595.3,1.25403]
[1744892001003,1.964,1595.4,1595.3,3.34583]
[1744892001305,1.964,1595.4,1595.3,5.38873]
[1744892001603,0.00940763,1595.5,1595.3,4.1347]
[1744892001905,0.00940763,1595.5,1595.4,7.36771387]
[1744892002094,0.00940763,1595.5,1595.4,7.36770112]
[1744892002407,0.00940763,1595.5,1595.4,6.55355]
[1744892008104,2.1666,1595.9,1595.8,1.25364]
[1744892008497,2.1666,1595.9,1595.8,7.58424]
[1744892008799,2.1666,1595.9,1595.8,10.79204]
[1744892013809,1.26290763,1596.0,1595.9,1.25356]
[1744892014107,1.26290763,1596.0,1595.9,3.22676]
[1744892014506,1.26288763,1596.0,1595.9,3.22676]
[1744892014706,1.25356,1595.9,1595.8,8.6861]
[1744892014906,1.25356,1595.9,1595.8,3.2078]
[1744892015612,1.25356,1595.9,1595.8,4.46144]
[1744892016010,1.25356,1595.9,1595.8,3.2078]
[1744892017302,3.37436,1595.9,1595.8,3.2078]
[1744892018205,1.25364,1595.8,1595.7,1.26305763]
[1744892018411,7.52494,1595.8,1595.7,1.26311763]
[1744892018603,7.52494,1595.8,1595.7,3.35911763]
[1744892023310,7.52494,1595.8,1595.7,2.10540763]
[1744892023812,7.52494,1595.8,1595.7,3.35911763]
[1744892030219,3.24424,1595.8,1595.7,3.35911763]
[1744892030518,3.24424,1595.8,1595.7,5.38071763]
[1744892034821,5.42824,1595.8,1595.7,5.38071763]
[1744892035024,5.42824,1595.8,1595.7,6.19574201]
[1744892035221,5.42824,1595.8,1595.7,6.19576445]
[1744892037028,5.42824,1595.8,1595.7,6.19596579]
[1744892037321,5.42824,1595.8,1595.7,5.38071763]
[1744892038116,5.42824,1595.8,1595.7,0.00940763]
[1744892038422,5.42824,1595.8,1595.7,1.26311763]
[1744892040025,4.1746,1595.8,1595.7,1.26311763]
[1744892040323,5.42824,1595.8,1595.7,3.38721763]
[1744892040823,4.1746,1595.8,1595.7,4.20269789]
[1744892041121,4.1746,1595.8,1595.7,3.38721763]
[1744892041324,5.42824,1595.8,1595.7,3.38721763]
[1744892042125,5.42824,1595.8,1595.7,4.2028484]
[1744892042719,5.42824,1595.8,1595.7,3.38721763]